bitfinex-derivatives/quotes_ETHF0:USTF0_20260113
["timestamp","ask_amount","ask_price","bid_price","bid_amount"]
[1768325471934,1.45632956,3186.2,3185.5,0.00754419]
[1768325473344,0.14032956,3186.1,3185.5,0.00754419]
[1768325474648,0.14032956,3186.5,3185.5,0.00754419]
[1768325474849,1.316,3186.4,3185.5,0.00754419]
[1768325475151,0.14504039,3186.1,3184.8,2.80437526]
[1768325475349,0.14504039,3186.1,3184.9,0.15706]
[1768325475852,0.14032956,3185.8,3184.5,0.15708]
[1768325476057,0.14032956,3185.8,3183.9,2.80437526]
[1768325476253,0.14270871,3185.4,3183.9,2.96148526]
[1768325476456,0.14270871,3185.2,3183.9,0.15711]
[1768325476650,0.14270871,3185.2,3184.2,0.1571]
[1768325476958,0.14270871,3184.2,3182.3,3.93064101]
[1768325477159,0.14270871,3183.7,3182.3,0.00350162]
[1768325477457,0.14270871,3183.3,3181.6,3.93064101]
[1768325477659,0.14270871,3183.3,3181.5,0.15723]
[1768325478158,0.14270871,3182.5,3180.8,0.15726]
[1768325478454,4.457,3184.1,3180.8,0.00235132]
[1768325478455,0.14270871,3181.7,3180.8,0.00235132]
[1768325478761,0.14270871,3182.0,3179.8,0.06087605]
[1768325478952,0.14270871,3182.0,3180.4,0.15728]
[1768325479146,0.14270871,3182.0,3179.6,1.60152498]
[1768325479347,0.14270871,3181.1,3178.9,0.15736]
[1768325479564,0.14270871,3180.9,3178.9,0.1610231]
[1768325479855,0.14270871,3180.9,3178.2,1.1116272]
[1768325480055,0.14270871,3180.6,3178.2,1.1116272]
[1768325480649,0.14270871,3180.5,3178.2,1.32629034]
[1768325480846,40.8,3180.8,3178.3,0.05727314]
[1768325481050,0.00374751,3181.1,3179.1,0.05727314]
[1768325481249,0.14645622,3181.1,3179.2,0.15734]
[1768325481451,0.00374751,3181.1,3179.4,1.54064893]
[1768325481653,0.14270871,3182.2,3179.8,1.54064893]
[1768325481852,0.237,3182.1,3180.5,0.15728]
[1768325482054,0.237,3182.1,3179.8,0.05991437]
[1768325482055,0.14270871,3182.0,3180.0,1.54064893]
[1768325482657,0.14270871,3182.0,3180.0,0.00258312]
[1768325482852,0.14270871,3182.0,3178.8,0.15736]
[1768325482853,0.14270871,3181.8,3178.8,0.15736]
[1768325483048,0.14270871,3181.8,3179.1,1.54064893]
[1768325483255,1.54064893,3181.9,3178.8,0.15736]
[1768325483256,0.14270871,3181.3,3178.9,1.54064893]
[1768325483655,0.14270871,3180.0,3178.0,0.1574]
[1768325483956,0.14270871,3179.9,3178.3,1.54064893]
[1768325484156,0.14270871,3180.5,3178.6,1.54064893]
[1768325484353,0.14270871,3180.5,3178.8,1.54064893]
[1768325484657,0.14270871,3179.7,3178.2,1.1156158]
[1768325484857,0.14270871,3179.5,3178.2,1.1156158]
[1768325485362,0.00286351,3179.7,3178.2,7.1156158]
[1768325485661,0.00286351,3179.7,3178.2,1.1156158]
[1768325486164,0.14270871,3180.7,3178.9,0.15736]
[1768325486457,0.14270871,3180.7,3179.2,1.54064893]
[1768325486868,0.14270871,3181.2,3179.2,1.54064893]
[1768325487255,0.14543942,3181.2,3179.2,1.54064893]
[1768325487456,0.14543942,3181.2,3179.5,0.15733]
[1768325487659,0.14543942,3181.2,3179.6,1.69796893]
[1768325487961,0.00273071,3181.2,3179.6,0.15732]
[1768325488265,0.00273071,3181.2,3180.0,0.1573]
[1768325489263,0.14270871,3182.5,3180.3,1.54064893]
[1768325489473,0.14270871,3182.5,3180.3,1.69793893]
[1768325489774,0.14270871,3182.5,3180.4,0.15729]
[1768325489958,0.14270871,3182.1,3180.4,0.15729]
[1768325490367,0.14609697,3182.1,3179.6,0.03193005]
[1768325490764,0.14609697,3182.1,3180.0,0.15731]
[1768325490969,0.14609697,3182.1,3180.1,0.1573]
[1768325491464,0.14609697,3182.1,3180.5,0.15728]
[1768325491666,0.00338826,3182.1,3180.5,0.16000871]
[1768325491967,0.00338826,3182.1,3180.7,1.54064893]
[1768325492571,0.00338826,3182.1,3181.0,0.15725]
[1768325493267,0.14270871,3182.6,3181.0,0.15725]
[1768325493468,0.14270871,3182.6,3180.5,0.00272871]
[1768325493668,0.14270871,3182.2,3180.5,0.00272871]
[1768325494366,0.14558764,3182.2,3180.5,0.00272871]
[1768325494570,0.00287893,3182.2,3180.9,0.15726]
[1768325495168,0.14270871,3182.8,3181.4,0.15724]
[1768325495568,3.28606538,3183.6,3181.1,1.54064893]
[1768325495774,0.14106538,3183.5,3181.7,0.15722]
[1768325496270,0.1437976,3183.5,3181.7,0.15722]
[1768325496579,0.14106538,3183.2,3181.0,0.15725]
[1768325496874,0.00273222,3183.5,3181.0,0.15726]
[1768325496875,0.14106538,3182.6,3181.0,0.15726]
[1768325497073,0.00471831,3182.9,3181.3,0.15724]
[1768325497261,0.00471831,3182.9,3181.7,1.69786893]
[1768325497663,0.00471831,3182.9,3181.7,0.15722]
[1768325498578,0.14578369,3182.9,3181.7,0.15722]
[1768325499184,0.14578369,3182.9,3180.9,1.54064893]
[1768325499370,0.14578369,3182.9,3180.5,3.14772871]
[1768325499679,0.14578369,3182.9,3181.0,0.15725]
[1768325501986,0.14106538,3182.8,3181.0,0.15725]
[1768325502675,0.14106538,3182.8,3181.1,0.15725]
[1768325504780,0.14106538,3182.8,3181.3,0.15724]
[1768325505482,0.14106538,3182.8,3180.6,0.02157879]
[1768325505673,0.14106538,3182.8,3181.4,0.15723]
[1768325506074,0.14106538,3182.8,3181.5,0.15723]
[1768325506378,0.14106538,3182.8,3180.6,0.02157879]
[1768325506676,0.14106538,3182.8,3181.5,0.15723]
[1768325506886,0.00471831,3182.9,3181.9,0.15721]
[1768325507082,0.00471831,3182.9,3182.0,0.15721]
[1768325507278,0.00273222,3183.5,3181.4,6.36]
[1768325507586,0.00273222,3183.5,3182.4,0.15719]
[1768325508585,0.00273222,3183.5,3182.5,0.15718]
[1768325508773,0.00273222,3183.5,3182.7,0.15717]
[1768325508982,0.14106538,3184.3,3182.8,0.15717]
[1768325509985,0.14420582,3184.3,3182.8,0.16010765]
[1768325511288,0.14420582,3184.3,3182.9,0.15716]
[1768325511485,0.14420582,3184.3,3183.2,0.15715]
[1768325511688,0.00314044,3184.3,3183.4,0.15714]
[1768325511875,0.00314044,3184.3,3182.8,0.00293765]
[1768325512081,0.14106538,3184.9,3182.9,6.0]
[1768325512382,0.14106538,3184.9,3183.0,1.7479131]
[1768325512687,0.14106538,3184.9,3183.8,0.15712]
[1768325513081,0.14411402,3184.9,3183.8,0.15712]
[1768325513482,0.14411402,3184.9,3184.0,0.00471054]
[1768325514591,0.14106538,3184.8,3182.8,0.00293765]
[1768325514789,0.14106538,3184.8,3182.8,0.16010765]
[1768325516981,0.16011864,3184.9,3182.8,0.16010765]
[1768325516982,0.14106538,3184.5,3182.8,0.16010765]
[1768325517183,1.321,3184.4,3182.8,0.00293765]
[1768325517386,0.14106538,3184.3,3182.8,0.00293765]
[1768325519692,0.14106538,3184.1,3182.8,0.00293765]
[1768325520193,0.00471054,3183.8,3182.8,0.00293765]
[1768325521291,0.00471054,3183.8,3182.8,0.16010765]
[1768325521790,0.14577592,3183.8,3182.8,0.00293765]
[1768325522479,0.14577592,3183.8,3181.7,0.15722]
[1768325522480,0.14106538,3183.7,3181.7,0.15722]
[1768325522682,0.29818538,3183.7,3181.7,0.15722]
[1768325522880,0.14106538,3183.6,3181.7,0.15722]
[1768325523091,0.14106538,3183.6,3181.8,0.15722]
[1768325523587,0.14106538,3183.6,3181.8,0.16097642]
[1768325523986,0.14106538,3183.4,3181.8,0.00375642]
[1768325524190,0.14106538,3183.2,3181.8,0.00375642]
[1768325525191,0.1396411,3183.0,3180.5,3.144]
[1768325525401,0.1396411,3182.8,3181.2,0.15724]
[1768325525899,0.1396411,3182.8,3181.3,0.15724]
[1768325526096,0.1396411,3182.8,3180.5,3.144]
[1768325526290,0.1396411,3182.8,3180.5,3.1476108]
[1768325526490,0.00471054,3182.4,3181.5,0.15723]
[1768325526788,0.00694322,3182.4,3181.5,0.15723]
[1768325527685,0.00694322,3182.4,3181.6,0.15723]
[1768325528081,0.1396411,3182.8,3181.8,0.15722]
[1768325528284,1.325,3183.2,3181.8,0.15722]
[1768325528285,1.4646411,3183.2,3181.8,0.15722]
[1768325528487,0.1396411,3183.1,3181.8,0.15722]
[1768325529087,0.14192,3183.1,3181.8,0.15722]
[1768325529595,0.14192,3183.1,3181.9,0.15721]
[1768325530491,0.14192,3183.1,3182.0,0.15721]
[1768325533391,0.14192,3183.1,3181.7,0.00471054]
[1768325533995,0.0022789,3183.1,3181.7,0.00471054]
[1768325534400,0.0022789,3183.1,3182.2,0.1572]
[1768325534588,0.0022789,3183.1,3182.3,0.15719]
[1768325535896,0.14760254,3183.1,3182.3,0.15719]
[1768325536902,0.14760254,3183.1,3181.7,0.16193054]
[1768325537102,0.14760254,3183.1,3181.8,0.15722]
[1768325537902,0.14760254,3183.1,3181.7,0.00471054]
[1768325538402,0.14760254,3183.1,3181.7,0.16193054]
[1768325539302,0.14760254,3183.1,3182.1,0.1572]
[1768325539700,0.0022789,3183.1,3182.3,0.15719]
[1768325540496,0.0022789,3183.1,3182.4,0.15719]
[1768325540706,0.0022789,3183.1,3181.7,0.00471054]
[1768325540707,0.14532364,3183.6,3181.7,6.00471054]
[1768325540995,0.14532364,3183.6,3182.5,0.15718]
[1768325541197,0.14532364,3183.6,3182.6,0.15718]
[1768325541401,3.144,3183.8,3182.6,0.15718]
[1768325541600,0.14532364,3183.7,3182.6,0.15718]
[1768325541906,0.14893002,3183.7,3182.6,0.15718]
[1768325543210,0.14893002,3183.7,3181.8,2.78781422]
[1768325543407,0.14893002,3183.7,3182.7,0.15717]
[1768325543608,0.14893002,3183.7,3182.8,0.15717]
[1768325543799,0.14893002,3183.7,3182.8,0.16043275]
[1768325546807,0.14893002,3183.7,3182.9,0.15716]
[1768325547016,0.00360638,3183.7,3182.8,0.00326275]
[1768325547212,0.00360638,3183.7,3183.1,0.15715]
[1768325547903,0.14893002,3183.7,3182.8,0.00326275]
[1768325550515,0.14893002,3183.7,3182.2,0.1572]
[1768325550902,0.14532364,3183.5,3181.6,2.78781422]
[1768325551205,0.14532364,3183.5,3181.4,2.78781422]
[1768325551712,0.14532364,3183.5,3181.7,0.00851865]
[1768325552301,0.14532364,3183.5,3182.1,0.1572]
[1768325552507,0.14532364,3183.5,3181.7,0.00851865]
[1768325552703,0.14532364,3183.5,3181.8,2.78781422]
[1768325553107,0.14532364,3183.5,3182.0,2.78781422]
[1768325553307,0.14532364,3183.5,3182.5,0.15718]
[1768325554116,0.14532364,3183.5,3182.6,0.15718]
[1768325557220,0.14180934,3183.1,3181.7,0.00851865]
[1768325557416,0.14180934,3182.9,3181.7,0.00851865]
[1768325557619,0.14180934,3182.9,3181.0,2.78781422]
[1768325557917,0.14180934,3182.9,3180.8,2.94507422]
[1768325558116,0.14180934,3182.9,3180.8,0.15726]
[1768325558518,0.14180934,3182.9,3180.8,0.16091513]
[1768325559310,1.5426821,3182.7,3180.8,0.16091513]
[1768325559515,0.14180934,3182.6,3180.8,0.16091513]
[1768325560218,0.14180934,3182.2,3180.8,0.16091513]
[1768325562920,0.14180934,3182.1,3181.0,0.15725]
[1768325564625,0.14180934,3182.1,3180.8,0.00365513]
[1768325573025,0.14180934,3181.4,3180.1,0.1573]
[1768325573525,0.14180934,3181.4,3180.2,0.1573]
[1768325574232,0.14540958,3181.4,3180.2,0.16036752]
[1768325575233,0.14540958,3181.4,3180.3,0.15729]
[1768325576337,0.00360024,3181.4,3180.8,0.15726]
[1768325577941,0.00360024,3181.4,3180.9,0.15726]
[1768325578141,0.14180934,3182.0,3180.9,0.15726]
[1768325579237,0.14501495,3182.0,3180.9,0.15726]
[1768325580440,0.14501495,3182.0,3181.1,0.15725]
[1768325584140,0.14180934,3181.7,3180.5,0.15728]
[1768325584744,0.00320561,3182.0,3180.9,0.15726]
[1768325585237,0.14818889,3182.0,3180.9,0.15726]
[1768325585439,0.00320561,3182.0,3181.0,0.15725]
[1768325585750,0.00320561,3182.0,3180.5,4.33049632]
[1768325586043,0.14498328,3182.5,3180.9,1.5426821]
[1768325586247,0.14498328,3183.0,3181.8,0.15721]
[1768325586743,0.14498328,3182.6,3181.1,2.78781422]
[1768325586950,0.14498328,3182.2,3180.8,6.71845523]
[1768325587134,0.14498328,3182.2,3180.7,2.78781422]
[1768325587336,0.14737668,3182.6,3180.8,2.78781422]
[1768325587540,0.14737668,3182.6,3181.2,0.15725]
[1768325587851,0.14737668,3182.6,3181.4,0.15724]
[1768325588847,0.14498328,3182.2,3180.7,2.78781422]
[1768325589048,0.14498328,3182.2,3180.7,0.15727]
[1768325590553,0.14498328,3182.2,3180.5,2.78781422]
[1768325590554,0.14498328,3182.2,3180.8,0.15727]
[1768325593956,0.14498328,3182.2,3181.0,0.15725]
[1768325599564,0.14100266,3181.8,3180.4,2.94510422]
[1768325599960,0.14100266,3181.8,3180.3,2.78781422]
[1768325600156,0.14100266,3181.8,3180.2,2.79088174]
[1768325601358,0.14100266,3181.8,3180.2,2.94817174]
[1768325601859,0.14100266,3181.8,3180.2,0.16035752]
[1768325602455,0.14100266,3181.8,3180.3,0.15729]
[1768325603564,0.14100266,3181.4,3180.3,0.15729]
[1768325603755,0.14100266,3181.2,3180.2,0.00306752]
[1768325603955,0.14100266,3181.2,3180.3,0.15729]
[1768325605675,0.14100266,3181.2,3180.4,0.15729]
[1768325606460,0.14100266,3181.2,3180.2,0.00306752]
[1768325606765,0.14100266,3180.9,3180.2,0.00306752]
[1768325607263,0.14100266,3180.9,3179.8,0.15732]
[1768325607465,0.14100266,3180.9,3179.3,2.78781422]
[1768325607666,0.14100266,3180.9,3179.9,0.15731]
[1768325608162,0.14100266,3180.9,3179.9,0.16050091]
[1768325608560,0.14100266,3180.9,3179.9,0.00319091]
[1768325609064,0.14100266,3180.9,3179.8,0.15732]
[1768325609960,0.14100266,3180.5,3179.1,0.15735]
[1768325610161,40.8,3181.4,3179.6,0.15733]
[1768325610162,0.14100266,3181.0,3179.6,0.15733]
[1768325610360,0.14100266,3180.8,3179.6,0.15733]
[1768325610952,0.14100266,3180.8,3179.8,0.15732]
[1768325611158,3.146,3181.2,3179.6,0.00355233]
[1768325611159,1.324,3181.2,3179.6,0.00355233]
[1768325611355,0.14100266,3181.3,3179.6,0.00355233]
[1768325611767,0.14100266,3181.3,3180.0,0.1573]
[1768325615468,1.05574842,3180.7,3180.0,0.1573]
[1768325616266,0.14516666,3181.3,3180.4,1.05574842]
[1768325616568,0.14516666,3181.7,3181.1,0.15725]
[1768325616872,1.05574842,3182.1,3181.1,0.15725]
[1768325617054,1.05574842,3181.9,3181.1,0.15725]
[1768325617259,0.14516666,3182.2,3181.1,0.15725]
[1768325619270,0.14516666,3182.2,3181.2,0.15725]
[1768325620474,0.0023934,3182.6,3180.8,0.03208022]
[1768325620666,0.0023934,3182.6,3181.8,0.15721]
[1768325620971,0.14516666,3183.3,3181.4,4.33059324]
[1768325621158,0.14516666,3183.3,3181.8,1.54277902]
[1768325621362,0.14516666,3183.3,3181.5,2.78781422]
[1768325621669,0.14516666,3183.3,3182.3,0.15719]
[1768325621971,0.00224209,3183.3,3182.4,0.15719]
[1768325625071,0.14740875,3183.3,3182.4,0.15719]
[1768325625373,0.14740875,3183.3,3182.3,0.00265143]
[1768325630176,0.00224209,3183.3,3182.3,0.00265143]
[1768325630369,0.00224209,3183.3,3182.5,0.15718]
[1768325632678,0.14516666,3183.8,3182.6,0.15718]
[1768325633878,0.14886654,3183.8,3182.6,0.15718]
[1768325640872,0.14886654,3183.8,3182.3,0.00265143]
[1768325642480,0.14886654,3183.8,3182.3,0.15984143]
[1768325642983,0.14886654,3183.8,3182.3,0.00265143]
[1768325643982,0.14516666,3183.6,3182.4,0.15719]
[1768325645982,0.13383877,3183.5,3181.8,0.15722]
[1768325647090,0.13383877,3183.5,3181.8,0.16118286]
[1768325647793,0.13383877,3183.4,3181.8,0.16118286]
[1768325648891,0.13383877,3183.4,3181.9,0.15721]
[1768325649891,0.13383877,3183.0,3181.8,0.00396286]
[1768325650078,0.13383877,3183.0,3180.9,6.71845523]
[1768325650379,0.13383877,3183.0,3180.9,2.78781422]
[1768325650983,0.13383877,3183.0,3181.5,0.15723]
[1768325651184,0.13383877,3182.8,3181.5,0.15723]
[1768325651380,1.45483877,3182.8,3181.5,0.15723]
[1768325651891,0.13383877,3182.7,3181.5,0.15723]
[1768325652293,0.13383877,3182.7,3181.6,0.15723]
[1768325653485,0.13383877,3182.7,3181.0,2.78781422]
[1768325653691,0.13383877,3182.7,3181.1,2.78781422]
[1768325654686,0.13383877,3182.7,3181.7,0.15722]
[1768325656496,0.13383877,3182.7,3181.1,0.15725]
[1768325657197,4.60913654,3182.6,3181.2,0.15724]
[1768325657383,0.14313654,3182.5,3181.3,0.15724]
[1768325658893,0.14313654,3182.5,3180.9,0.00326094]
[1768325658894,0.14313654,3182.5,3181.5,0.15723]
[1768325659605,0.14313654,3182.5,3181.6,0.15723]
[1768325660792,0.14313654,3182.5,3181.1,0.15725]
[1768325660992,0.14313654,3182.5,3181.2,0.15725]
[1768325663500,1.322,3182.4,3181.2,0.15725]
[1768325663901,1.46513654,3182.4,3181.2,0.15725]
[1768325665202,0.14313654,3182.3,3181.2,0.15725]
[1768325667604,0.14313654,3182.3,3180.9,0.00326094]
[1768325670307,0.14313654,3182.1,3180.9,0.00326094]
[1768325671110,0.14313654,3182.1,3180.9,0.16052094]
[1768325673107,0.14313654,3182.1,3180.9,0.00326094]
[1768325675914,6.1070169,3184.1,3183.9,0.15711]
[1768325676109,0.14289013,3186.9,3183.6,3.145]
[1768325676306,0.14289013,3186.1,3184.6,0.15708]
[1768325676807,0.14289013,3186.1,3184.8,0.15707]
[1768325677013,0.14686661,3186.1,3184.8,0.15707]
[1768325677512,0.14686661,3186.1,3184.6,0.00364029]
[1768325684115,0.14686661,3186.1,3184.6,0.16072029]
[1768325685112,0.14686661,3186.1,3184.7,0.15707]
[1768325690319,0.14686661,3186.1,3184.6,0.00364029]
[1768325690518,0.14289013,3185.9,3184.6,0.00364029]
[1768325696629,0.14289013,3185.9,3184.6,0.16072029]
[1768325696924,0.14289013,3185.9,3184.7,0.15707]
[1768325697318,0.14289013,3185.9,3184.8,3.889]
[1768325703426,0.14289013,3185.9,3184.7,5.00020858]
[1768325703927,0.14289013,3185.9,3184.7,3.889]
[1768325704131,0.14289013,3185.9,3184.9,1.11120858]
[1768325705032,0.14289013,3185.9,3184.7,1.68706319]
[1768325705229,0.14289013,3185.9,3185.1,1.68706319]
[1768325706426,0.14289013,3185.9,3184.6,2.79145451]
[1768325706427,2.85888249,3185.8,3184.8,2.24941758]
[1768325706630,2.85888249,3185.8,3184.6,2.25305787]
[1768325706831,2.85888249,3185.8,3184.6,0.00364029]
[1768325707329,3.01590249,3185.8,3184.6,0.00364029]
[1768325708233,1.53888249,3185.4,3184.6,0.00364029]
[1768325708528,1.53888249,3185.4,3183.9,0.13806809]
[1768325708731,1.69594249,3185.0,3183.4,6.32848567]
[1768325708929,1.53888249,3184.6,3183.4,0.19006809]
[1768325709126,1.32,3184.5,3183.4,0.19006809]
[1768325709632,1.32,3184.5,3183.4,0.19365013]
[1768325713833,1.32,3184.5,3183.4,0.05558204]
[1768325716242,1.32,3184.5,3183.4,0.05309385]
[1768325716434,1.47708,3184.5,3183.4,0.05309385]
[1768325718744,1.53888249,3184.2,3183.4,0.05309385]
[1768325718948,3.143,3184.1,3182.9,0.13806809]
[1768325719938,3.143,3184.1,3182.9,0.14140494]
[1768325722645,0.15709,3184.4,3182.9,0.14140494]
[1768325722839,1.32,3184.0,3182.9,0.14140494]
[1768325726748,1.32,3184.0,3183.1,0.1451018]
[1768325730042,3.143,3184.3,3183.3,0.1451018]
[1768325733544,0.13325548,3185.5,3183.9,0.15711]
[1768325734846,0.13580276,3185.9,3184.5,0.15708]
[1768325737150,0.13580276,3185.9,3184.5,2.40649758]
[1768325738353,0.13580276,3185.9,3184.5,0.15708]
[1768325739848,0.13580276,3185.7,3184.0,5.1943418]
[1768325740050,0.13580276,3185.7,3184.1,3.889]
[1768325741650,0.13580276,3185.7,3183.8,2.24941758]
[1768325741651,0.13580276,3185.6,3183.8,2.24941758]
[1768325742059,0.13580276,3185.5,3183.7,2.24941758]
[1768325742266,0.13580276,3185.3,3183.7,2.24941758]
[1768325743755,0.13580276,3185.3,3183.6,3.889]
[1768325743756,0.29285276,3185.3,3183.6,3.889]
[1768325743954,0.13580276,3185.2,3183.6,3.889]
[1768325744558,0.13580276,3185.1,3183.6,3.889]
[1768325745266,0.29285276,3185.1,3183.6,3.889]
[1768325745654,0.13580276,3185.0,3183.6,3.889]
[1768325747363,0.13580276,3185.0,3183.2,3.889]
[1768325747566,0.13580276,3185.0,3183.3,3.889]
[1768325748066,0.29286276,3185.0,3183.3,3.889]
[1768325748259,0.29286276,3185.0,3182.9,0.00333685]
[1768325748260,0.13580276,3184.5,3182.9,0.00333685]
[1768325748454,0.13580276,3184.3,3182.9,0.00333685]
[1768325749059,4.62609,3184.4,3182.9,0.00333685]
[1768325749060,0.15712,3183.9,3182.9,0.00333685]
[1768325749254,0.13580276,3183.8,3182.2,3.889]
[1768325749463,0.13580276,3183.8,3181.9,4.04621]
[1768325750167,0.13848348,3183.8,3181.9,4.0498613]
[1768325752067,0.13580276,3183.7,3181.9,4.0498613]
[1768325752764,0.13580276,3183.7,3181.9,0.1608613]
[1768325756072,0.13580276,3183.7,3182.0,3.889]
[1768325760172,0.29292276,3183.7,3182.0,3.889]
[1768325760474,0.13580276,3183.6,3182.0,3.889]
[1768325761880,0.13580276,3183.6,3182.1,3.889]
[1768325763279,1.18993908,3183.5,3182.1,3.889]
[1768325763979,0.00268072,3183.8,3182.1,3.889]
[1768325764580,0.13848348,3183.8,3182.1,3.889]
[1768325765977,0.13848348,3183.8,3182.2,0.29153323]
[1768325766181,0.00268072,3183.8,3182.3,0.13434323]
[1768325766880,0.00268072,3183.8,3182.3,4.02334323]
[1768325767177,0.1455381,3183.8,3182.3,3.889]
[1768325770781,0.1455381,3183.8,3182.4,3.889]
[1768325771578,0.00268072,3183.8,3182.4,0.13434323]
[1768325771779,0.00268072,3183.8,3182.5,0.29152323]
[1768325771975,1.327,3183.9,3182.7,0.13434323]
[1768325772189,3.143,3184.1,3182.8,0.29151323]
[1768325772380,3.143,3184.1,3182.9,0.13434323]
[1768325772978,0.24710248,3184.4,3182.9,0.13434323]
[1768325773185,0.00310516,3184.1,3182.9,0.13434323]
[1768325773877,0.00310516,3184.1,3183.0,0.15715]
[1768325774084,0.14596254,3184.1,3182.8,2.24941758]
[1768325774385,0.14596254,3184.1,3182.5,0.13434323]
[1768325774386,0.14596254,3184.1,3182.5,2.24941758]
[1768325774582,0.14596254,3184.1,3182.4,2.40660758]
[1768325776384,0.14596254,3184.1,3182.5,2.24941758]
[1768325777386,0.00310516,3184.1,3182.7,2.24941758]
[1768325777581,0.00310516,3184.1,3182.8,0.14275711]
[1768325777782,0.00310516,3184.1,3183.0,2.24941758]
[1768325779387,0.00310516,3184.1,3182.9,2.24941758]
[1768325779591,0.00310516,3184.1,3183.0,3.889]
[1768325780887,0.00310516,3184.1,3183.0,6.13841758]
[1768325781387,0.00310516,3184.1,3183.0,3.889]
[1768325782380,0.00310516,3184.1,3182.9,2.24941758]
[1768325783892,0.30163432,3185.5,3183.7,0.14275711]
[1768325784090,0.14459432,3185.4,3183.7,2.39217469]
[1768325784396,0.14459432,3185.4,3183.7,0.14275711]
[1768325784786,0.14843017,3185.4,3183.7,0.14275711]
[1768325785282,1.05322442,3184.9,3183.6,2.24941758]
[1768325785486,1.05322442,3184.6,3183.3,2.24941758]
[1768325786002,1.05322442,3184.6,3183.2,2.24941758]
[1768325786186,0.14459432,3184.8,3183.2,2.40656758]
[1768325786792,1.05322442,3184.6,3183.2,2.40656758]
[1768325787495,1.05322442,3184.6,3183.2,0.15715]
[1768325787695,0.14459432,3184.5,3183.1,2.24941758]
[1768325787995,1.05322442,3184.3,3182.9,2.24941758]
[1768325788394,0.14459432,3184.5,3182.9,2.24941758]
[1768325789189,1.05322442,3184.2,3182.9,2.24941758]
[1768325789590,1.05322442,3184.2,3182.8,2.40658758]
[1768325790089,1.19781874,3184.2,3182.8,2.40658758]
[1768325790287,1.19781874,3183.9,3182.5,2.24941758]
[1768325790491,0.14459432,3183.8,3182.3,2.24941758]
[1768325790692,0.14459432,3183.8,3182.2,2.40661758]
[1768325792599,0.14459432,3183.8,3182.3,2.24941758]
[1768325793098,1.05322442,3184.0,3182.3,2.40660758]
[1768325793690,1.05322442,3183.7,3182.3,2.40660758]
[1768325793898,1.05322442,3183.7,3182.3,0.15719]
[1768325794095,0.14459432,3183.6,3182.1,2.24941758]
[1768325794295,1.05322442,3182.6,3181.9,0.0036513]
[1768325794498,0.00281206,3182.6,3181.9,0.0036513]
[1768325795196,1.05322442,3183.3,3181.9,0.0036513]
[1768325795397,1.05322442,3183.5,3181.9,0.0036513]
[1768325795787,0.13584406,3183.4,3181.9,0.0036513]
[1768325795989,1.05322442,3183.2,3181.9,0.0036513]
[1768325796192,1.05723484,3183.2,3181.9,0.0036513]
[1768325798508,0.13584406,3183.1,3181.9,0.0036513]
[1768325798804,1.05322442,3182.6,3181.1,2.40666758]
[1768325799907,1.05322442,3182.6,3181.1,2.40932746]
[1768325800297,1.05322442,3182.6,3181.1,0.15990988]
[1768325800694,0.13584406,3182.5,3181.1,0.15990988]
[1768325801302,1.05470521,3182.3,3181.1,1.21461509]
[1768325803211,1.05470521,3182.1,3181.1,0.15990988]
[1768325805110,1.05470521,3181.4,3180.5,5.1945118]
[1768325805305,1.05470521,3181.6,3180.5,2.40669758]
[1768325805506,1.05470521,3181.6,3180.5,1.21198521]
[1768325806211,1.05470521,3181.2,3180.5,0.00235915]
[1768325806411,1.05470521,3181.4,3180.5,0.00235915]
[1768325807213,1.05470521,3181.8,3180.6,1.05470521]
[1768325807411,1.05470521,3181.6,3180.6,1.05470521]
[1768325808105,1.05470521,3181.8,3180.6,1.05470521]
[1768325808305,1.05470521,3182.2,3181.0,1.05470521]
[1768325808615,1.05470521,3182.4,3181.2,1.05470521]
[1768325809013,1.05470521,3182.4,3180.6,0.13974179]
[1768325809317,1.05470521,3182.4,3181.1,1.05470521]
[1768325809497,1.05470521,3182.3,3181.1,1.05470521]
[1768325813011,1.05470521,3181.7,3180.5,0.00235915]
[1768325813210,1.05470521,3181.7,3180.5,1.05706436]
[1768325813413,1.05470521,3181.7,3180.5,1.21434436]
[1768325813606,1.05470521,3181.7,3180.6,0.15727]
[1768325813909,1.05470521,3181.9,3180.7,1.05470521]
[1768325814309,0.13584406,3182.0,3180.9,1.05470521]
[1768325815806,0.13584406,3182.5,3181.1,1.05470521]
[1768325816008,1.05470521,3182.3,3181.1,1.05470521]
[1768325816518,1.19054927,3182.5,3181.3,1.05470521]
[1768325816908,1.19054927,3182.5,3181.1,0.15725]
[1768325817115,1.19054927,3182.5,3181.1,1.21195521]
[1768325817415,1.19054927,3182.5,3181.3,1.05470521]
[1768325817812,1.05470521,3182.3,3181.1,0.15725]
[1768325820205,1.05470521,3182.2,3181.1,0.15725]
[1768325820606,1.05470521,3182.0,3181.1,0.15725]
[1768325820805,1.05470521,3181.6,3180.8,2.24941758]
[1768325821010,1.05470521,3181.6,3180.6,2.40669758]
[1768325821212,1.05470521,3181.8,3180.6,2.40669758]
[1768325821414,0.13584406,3182.3,3180.9,1.21196521]
[1768325821609,1.05470521,3182.2,3180.9,1.21196521]
[1768325822410,0.13584406,3182.3,3181.1,1.05470521]
[1768325822714,5.66154927,3182.8,3181.5,1.05470521]
[1768325823316,1.05470521,3182.6,3181.5,1.05470521]
[1768325823717,1.05470521,3182.6,3181.4,0.15724]
[1768325824609,4.60684406,3182.8,3181.9,1.05470521]
[1768325824816,0.13584406,3182.8,3181.9,1.05470521]
[1768325825015,1.05470521,3183.1,3181.9,1.05470521]
[1768325825821,1.05470521,3183.1,3181.8,0.15722]
[1768325825822,0.00401042,3183.2,3182.4,1.05470521]
[1768325826122,0.00401042,3183.2,3182.2,1.05470521]
[1768325826913,0.00401042,3183.2,3182.4,1.05470521]
[1768325827121,1.325,3183.4,3182.4,1.05470521]
[1768325827418,1.325,3183.4,3182.3,0.15719]
[1768325828013,1.32751205,3183.4,3182.3,0.15719]
[1768325828325,0.13917906,3183.1,3181.8,5.1944418]
[1768325828617,0.13917906,3183.1,3181.8,0.15721]
[1768325831119,0.13917906,3183.1,3181.5,2.24941758]
[1768325831524,0.13917906,3183.1,3181.4,2.24941758]
[1768325836030,0.13917906,3183.1,3181.4,2.40664758]
[1768325837324,0.13917906,3183.1,3181.5,0.15723]
[1768325838229,0.13299074,3182.3,3181.3,2.24941758]
[1768325838427,0.13299074,3182.3,3181.1,2.24941758]
[1768325838623,0.13299074,3182.3,3180.9,2.40667758]
[1768325839933,0.13299074,3182.3,3180.9,0.15726]
[1768325841533,0.13299074,3182.3,3180.5,2.79017337]
[1768325841729,0.13299074,3181.9,3180.5,0.00235915]
[1768325843640,1.54126543,3181.5,3180.5,0.00235915]
[1768325843842,1.67425617,3181.5,3180.5,0.00235915]